bitfinex/quotes_ETHUSD_20220123
["timestamp","ask_amount","ask_price","bid_price","bid_amount"]
[1642926269011,1.54421376,2498.3,2497.2,3.10773078]
[1642926269412,1.54421376,2498.3,2497.6,1.2063379]
[1642926269816,4.58554176,2498.6,2497.7,1.40082252]
[1642926270219,3.58554176,2498.6,2497.7,1.70082252]
[1642926270422,3.58554176,2498.6,2497.2,3.10773078]
[1642926270620,3.58554176,2498.6,2497.7,0.3]
[1642926270860,3.58554176,2498.6,2497.4,2.82593358]
[1642926271059,2.16868,2498.8,2497.5,1.0]
[1642926271060,1.54421376,2498.7,2497.5,1.0]
[1642926271262,1.54421376,2498.7,2497.6,2.73444144]
[1642926271460,1.25787976,2498.5,2497.6,2.73444144]
[1642926271660,1.25787976,2498.5,2498.1,1.21782999]
[1642926271861,1.25787976,2498.5,2497.8,3.18142305]
[1642926272060,1.25787976,2498.5,2497.9,1.0]
[1642926272263,1.25787976,2498.5,2497.8,4.07898716]
[1642926272459,1.54421376,2498.4,2497.9,1.23445382]
[1642926272859,1.54421376,2498.4,2498.1,1.35713796]
[1642926273761,1.54421376,2498.4,2498.1,1.65713796]
[1642926274159,1.54421376,2498.4,2498.3,1.37408023]
[1642926274915,1.17737264,2498.7,2498.1,1.65713796]
[1642926275509,1.17737264,2498.7,2497.9,0.3]
[1642926275711,1.17737264,2498.7,2497.8,1.6]
[1642926276113,1.54421376,2498.6,2497.8,2.75997592]
[1642926276613,0.35244072,2498.1,2497.8,4.12141277]
[1642926277313,0.35244072,2498.1,2497.8,2.96143685]
[1642926277913,23.43,2498.7,2497.8,2.96143685]
[1642926278657,1.63339543,2498.6,2497.8,2.96143685]
[1642926278858,1.63339543,2498.6,2497.7,4.7909]
[1642926278859,1.63339543,2498.6,2497.7,6.1678872]
[1642926279060,1.63339543,2498.6,2497.7,6.4678872]
[1642926279863,1.3526423,2498.0,2497.7,7.848541]
[1642926280266,0.00591462,2497.9,2497.7,3.057641]
[1642926280466,3.74913099,2498.6,2497.7,3.057641]
[1642926280666,3.74913099,2498.6,2497.9,0.02500786]
[1642926280871,3.74913099,2498.6,2497.9,0.38571786]
[1642926281067,3.74913099,2498.6,2498.1,0.0541265]
[1642926281268,1.63339543,2498.8,2498.2,1.31732239]
[1642926281470,1.63339543,2498.8,2498.3,2.76332257]
[1642926281671,1.59349543,2498.8,2498.4,1.0]
[1642926281871,1.55359543,2498.8,2498.5,3.51374962]
[1642926282111,0.09,2499.0,2498.8,0.0269123]
[1642926282312,0.09,2499.0,2498.8,2.82885628]
[1642926282511,0.09,2499.0,2498.9,0.3]
[1642926283014,0.09,2499.0,2498.2,0.16]
[1642926283210,0.09,2499.0,2498.0,0.16]
[1642926283412,0.09,2499.0,2497.8,0.20071]
[1642926283612,0.09,2499.0,2497.5,3.22962972]
[1642926283810,0.09,2499.0,2497.9,1.17891152]
[1642926283811,1.61284947,2499.0,2497.9,1.17891152]
[1642926284211,1.61284947,2499.0,2497.5,3.59945743]
[1642926284412,1.61284947,2499.0,2497.3,1.19817952]
[1642926284413,5.4385308,2498.9,2497.3,1.19817952]
[1642926284612,0.3,2498.8,2497.3,0.01227952]
[1642926284813,4.47156527,2498.7,2497.0,3.0408]
[1642926285017,4.55841708,2498.7,2497.4,1.53578924]
[1642926285221,0.481,2498.7,2497.9,1.42668441]
[1642926285422,0.481,2498.7,2497.4,1.53578924]
[1642926285423,0.08685181,2498.6,2497.4,1.53578924]
[1642926285861,0.08685181,2498.6,2497.4,1.83578924]
[1642926286062,1.52981336,2498.1,2497.8,1.49353087]
[1642926286461,1.52981336,2498.1,2497.8,0.3]
[1642926286665,1.52981336,2498.1,2496.8,13.73721083]
[1642926286862,1.52981336,2498.1,2496.8,7.48]
[1642926286863,3.5442095,2498.0,2496.8,7.48]
[1642926287064,1.61666517,2498.1,2496.6,0.49890997]
[1642926287263,1.52981336,2498.1,2496.7,3.40561182]
[1642926287460,1.52981336,2498.1,2496.8,0.36071]
[1642926287661,1.52981336,2498.1,2497.2,1.54848132]
[1642926288063,1.52981336,2498.1,2497.2,0.3]
[1642926288262,3.4518801,2498.0,2497.0,4.9558]
[1642926288466,3.9328801,2498.0,2497.0,4.9558]
[1642926288663,0.481,2498.0,2497.3,1.55660204]
[1642926288864,0.481,2498.0,2497.0,4.9558]
[1642926289611,0.481,2498.0,2497.2,1.29330079]
[1642926289812,0.481,2498.0,2497.0,4.9558]
[1642926290014,1.68421258,2497.9,2497.0,4.9558]
[1642926290414,25.59521258,2497.9,2497.0,4.9558]
[1642926290610,26.59521258,2497.9,2497.0,4.9558]
[1642926290813,26.59521258,2497.9,2496.6,0.13819997]
[1642926291011,26.59521258,2497.9,2496.7,1.53184448]
[1642926291012,4.65486062,2497.8,2496.7,1.53184448]
[1642926291213,1.0,2497.7,2496.4,5.2617]
[1642926291415,3.88596458,2497.6,2496.4,5.2617]
[1642926291611,0.481,2497.5,2496.4,5.2617]
[1642926291814,1.481,2497.5,2496.4,5.2617]
[1642926292012,0.56785181,2497.5,2496.4,5.2617]
[1642926292211,1.56785181,2497.5,2496.4,6.70799114]
[1642926292513,1.68421258,2497.4,2496.4,6.70799114]
[1642926292713,2.16521258,2497.4,2496.4,6.54799114]
[1642926292916,3.16521258,2497.4,2496.4,6.54799114]
[1642926293116,2.06521258,2497.4,2496.4,6.54799114]
[1642926293559,2.26502388,2497.4,2496.4,5.1017]
[1642926293963,1.6808113,2497.4,2496.4,5.1017]
[1642926294463,25.1108113,2497.4,2496.4,5.1017]
[1642926294668,1.0,2497.3,2496.4,5.1017]
[1642926294865,0.481,2497.2,2496.4,5.1017]
[1642926295868,0.481,2497.2,2496.5,1.49448924]
[1642926296066,0.481,2497.2,2496.6,0.02581711]
[1642926296267,0.481,2497.2,2496.8,1.46483668]
[1642926296467,2.72665925,2497.6,2496.9,1.12915063]
[1642926296670,2.72665925,2497.6,2496.8,1.46483668]
[1642926296869,3.31012497,2497.5,2496.4,0.01212071]
[1642926297106,3.99404273,2497.5,2496.1,5.0012]
[1642926297304,3.95396073,2497.5,2496.1,5.0012]
[1642926297904,3.95396073,2497.5,2495.9,1.44523256]
[1642926297905,1.46293371,2497.0,2495.9,2.70434084]
[1642926298110,0.08685181,2497.4,2495.9,2.70434084]
[1642926298111,0.481,2496.9,2495.9,2.70434084]
[1642926298304,0.481,2496.8,2495.9,2.70434084]
[1642926298508,0.481,2496.7,2495.9,2.70434084]
[1642926299210,0.481,2496.7,2495.9,3.00434084]
[1642926299410,0.01866532,2496.6,2495.9,3.00434084]
[1642926299609,0.481,2496.7,2495.9,3.00434084]
[1642926300210,0.481,2496.7,2495.9,1.44523256]
[1642926300408,0.481,2496.7,2495.9,0.13819997]
[1642926301459,0.481,2496.7,2496.1,1.34635475]
[1642926301859,0.481,2496.7,2496.0,1.52363022]
[1642926302060,0.481,2496.7,2495.9,0.13819997]
[1642926302464,0.481,2496.7,2495.3,5.0739]
[1642926302465,0.86785181,2496.7,2495.3,5.0739]
[1642926302670,1.00278,2496.6,2495.3,5.0739]
[1642926302864,0.481,2496.5,2495.6,1.27484302]
[1642926303066,0.781,2496.5,2495.6,1.27484302]
[1642926303464,23.43,2496.4,2495.6,1.27484302]
[1642926303669,1.481,2496.3,2495.6,1.27484302]
[1642926304066,2.27307586,2496.2,2495.6,1.27484302]
[1642926304268,2.75407586,2496.2,2495.6,1.27484302]
[1642926304723,2.75407586,2496.2,2496.0,1.44721484]
[1642926304924,2.27307586,2496.2,2496.0,1.44721484]
[1642926305123,2.27307586,2496.2,2496.1,2.76387114]
[1642926305124,2.17307586,2496.2,2496.1,2.76387114]
[1642926305325,0.2054,2496.7,2496.2,0.03293944]
[1642926305525,0.2054,2496.7,2496.3,1.51346769]
[1642926306026,0.2054,2496.7,2496.4,1.19184524]
[1642926307025,0.0001,2496.7,2496.5,2.81073123]
[1642926307423,0.0001,2496.7,2496.6,1.0]
[1642926307627,0.0001,2496.7,2496.6,4.51016394]
[1642926308023,0.7738,2497.5,2496.7,0.0007]
[1642926308262,0.7738,2497.5,2497.3,1.42942404]
[1642926308464,0.7738,2497.5,2497.4,1.36018142]
[1642926308675,0.7738,2497.5,2497.4,4.38376755]
[1642926308867,2.7266922,2498.0,2497.5,4.9]
[1642926309071,0.00260864,2498.7,2497.7,0.01020171]
[1642926309465,1.51484342,2498.5,2498.1,1.41328335]
[1642926309667,1.58376511,2499.0,2498.1,1.41328335]
[1642926309668,0.09,2499.0,2498.1,1.41328335]
[1642926309868,0.09,2499.0,2497.6,8.37134686]
[1642926310067,0.09,2499.0,2497.6,4.8956]
[1642926310271,0.481,2498.9,2497.6,4.8956]
[1642926310468,2.4849,2498.9,2497.6,4.8956]
[1642926310669,1.62111997,2498.9,2497.6,4.8956]
[1642926310870,1.46430769,2498.0,2497.6,6.17028622]
[1642926311069,1.46430769,2498.0,2497.6,1.29505232]
[1642926311472,2.27151525,2497.9,2497.6,1.29505232]
[1642926311676,2.27151525,2497.9,2497.4,0.01268782]
[1642926311871,2.27151525,2497.9,2497.0,5.1173]
[1642926312160,2.27151525,2497.9,2496.9,0.13819997]
[1642926312161,0.06550567,2497.5,2496.9,0.13819997]
[1642926312758,2.27151525,2497.4,2497.0,1.40897488]
[1642926313360,2.27151525,2497.4,2497.0,1.70897488]
[1642926313661,2.27151525,2497.4,2497.0,1.40897488]
[1642926313864,1.18777656,2497.2,2497.0,1.40897488]
[1642926314259,1.18777656,2497.2,2496.9,0.13819997]
[1642926314460,2.27151525,2497.9,2496.9,0.13819997]
[1642926315261,2.27151525,2497.9,2497.1,1.28014332]
[1642926315664,1.12499951,2497.3,2497.1,1.28014332]
[1642926315960,2.27151525,2497.9,2497.1,1.28014332]
[1642926316160,2.27151525,2497.9,2496.9,0.13819997]
[1642926316470,2.27151525,2497.9,2496.9,2.84506525]
[1642926316660,2.27151525,2497.9,2496.9,2.82304772]
[1642926316865,1.30040675,2497.4,2496.9,2.83492239]
[1642926317062,2.27151525,2497.9,2496.9,2.86015821]
[1642926317463,2.27151525,2497.9,2497.1,0.0128382]
[1642926317668,1.525e-05,2497.9,2497.1,0.06688415]
[1642926317863,1.525e-05,2498.4,2497.7,0.01234208]
[1642926318066,1.525e-05,2498.4,2497.8,0.01606906]
[1642926318263,1.525e-05,2498.4,2498.0,1.11348687]
[1642926318464,1.525e-05,2498.4,2497.8,0.3]
[1642926318664,1.525e-05,2498.4,2498.0,0.3]
[1642926318863,1.525e-05,2498.4,2497.7,0.01234208]
[1642926319169,3.63047732,2498.9,2497.7,0.01234208]
[1642926319526,1.16596825,2498.3,2497.9,2.73447729]
[1642926319926,0.13819997,2498.9,2497.9,3.03447729]
[1642926320125,0.13819997,2498.9,2497.9,2.73447729]
[1642926320326,0.13819997,2498.9,2497.9,3.03447729]
[1642926320526,0.13819997,2498.9,2498.0,1.0]
[1642926320726,0.13819997,2498.9,2498.1,0.0116309]
[1642926320925,0.13819997,2498.9,2498.0,1.3]
[1642926320926,0.13819997,2498.9,2498.6,1.15469785]
[1642926321127,0.09,2499.0,2498.6,1.15469785]
[1642926321527,0.09,2499.0,2498.4,1.2967409]
[1642926321731,0.09,2499.0,2498.1,5.2586]
[1642926322127,0.09,2499.0,2498.1,5.5586]
[1642926322331,0.09,2499.0,2498.1,5.8586]
[1642926322628,1.35383221,2498.9,2498.1,5.5586]
[1642926322828,1.35383221,2498.9,2498.1,7.00438248]
[1642926323030,0.09,2499.0,2498.1,7.30438248]
[1642926323664,0.09,2499.0,2498.3,0.01042394]
[1642926324064,0.09,2499.0,2498.9,1.32954456]
[1642926324462,0.09,2499.0,2498.9,3.25314205]
[1642926324665,0.09,2499.0,2498.9,1.92359749]
[1642926325469,0.09,2499.0,2498.9,0.33419466]
[1642926325668,0.09,2499.0,2498.3,1.52468155]
[1642926325867,0.09,2499.0,2498.3,2.64467527]
[1642926326467,1.33770477,2498.6,2498.3,2.64467527]
[1642926326667,1.33770477,2498.6,2498.3,1.11999372]
[1642926328123,1.33770477,2498.6,2497.7,5.01054208]
[1642926328326,25.36770477,2498.6,2497.2,5.1297]
[1642926328523,0.01497138,2498.4,2497.2,5.1297]
[1642926328722,23.43,2498.4,2497.2,5.1297]
[1642926328925,1.51060625,2497.9,2496.9,0.82613303]
[1642926329123,0.19210859,2497.3,2496.9,0.82613303]
[1642926329323,1.21421609,2497.3,2496.9,0.68793306]
[1642926330524,1.0233,2497.3,2496.9,0.68793306]
[1642926330761,16.96718432,2501.9,2496.9,0.68793306]
[1642926330762,0.481,2498.0,2496.9,0.68793306]
[1642926331056,6.0157,2498.3,2497.0,0.04680901]
[1642926331057,1.0,2498.2,2497.0,0.04680901]
[1642926331657,1.48434416,2497.6,2497.3,1.54798862]
[1642926332258,1.48434416,2497.6,2496.9,1.28793306]
[1642926332461,1.48434416,2497.6,2496.9,0.68793306]
[1642926332658,0.0442767,2497.2,2496.9,0.68793306]
[1642926332857,0.481,2498.0,2496.9,0.68793306]
[1642926333361,0.481,2498.0,2496.9,2.23236436]
[1642926333560,0.481,2498.0,2497.0,0.0095023]
[1642926333762,0.481,2498.0,2496.9,4.91269944]
[1642926333763,1.23992028,2497.6,2497.3,1.13983929]
[1642926334064,1.23992028,2497.6,2496.9,2.23236436]
[1642926334263,1.23992028,2497.6,2496.9,0.68793306]
[1642926334509,1.23992028,2497.6,2496.9,1.28793306]
[1642926334722,0.481,2498.0,2496.9,1.28793306]
[1642926335213,0.481,2498.0,2497.0,2.67004019]
[1642926335413,0.481,2498.0,2497.3,1.52771698]
[1642926335614,0.481,2498.0,2497.0,2.67004019]
[1642926335813,1.23247584,2497.7,2497.3,1.12557226]
[1642926336016,1.23247584,2497.7,2496.9,1.28793306]
[1642926336814,1.23247584,2497.7,2496.9,2.05292113]
[1642926337218,1.23247584,2497.7,2497.2,1.31690749]
[1642926337617,0.481,2498.0,2497.2,1.31690749]
[1642926338118,1.48322,2498.0,2497.2,1.31690749]
[1642926338359,0.481,2498.0,2497.2,1.31690749]
[1642926338559,0.481,2498.0,2497.7,1.10587428]
[1642926338961,0.481,2498.0,2497.0,3.30620081]
[1642926339162,0.481,2498.0,2497.4,1.20881094]
[1642926339563,3.89807006,2498.1,2497.4,1.20881094]
[1642926339564,2.23403385,2497.9,2497.4,1.50881094]
[1642926340066,2.23403385,2497.9,2497.6,1.33653064]
[1642926340564,2.23403385,2497.9,2497.4,1.20881094]
[1642926340965,2.23403385,2498.0,2497.4,1.20881094]
[1642926341364,2.23403385,2498.0,2496.9,0.68793306]
[1642926341566,2.23403385,2498.0,2497.3,1.44095034]
[1642926342210,2.23403385,2497.9,2497.3,1.44095034]
[1642926343012,2.23403385,2497.9,2497.7,1.53254979]
[1642926343413,0.13819997,2498.2,2497.7,0.39680105]
[1642926343414,2.23403385,2498.1,2497.7,0.39680105]
[1642926344016,2.23403385,2498.1,2497.0,3.00391659]
[1642926344216,2.23403385,2498.1,2497.0,8.15261659]
[1642926344822,2.23403385,2498.1,2497.0,7.85261659]
[1642926345026,2.23403385,2498.1,2497.5,1.35764016]
[1642926345221,1.4545762,2497.9,2497.5,1.35764016]
[1642926345519,1.4545762,2497.9,2497.4,1.26546867]
[1642926345765,1.4545762,2497.9,2497.0,7.85261659]
[1642926345959,2.23403385,2497.8,2497.0,5.1487]
[1642926346361,2.23403385,2497.8,2497.4,1.25131801]
[1642926346560,2.23403385,2497.8,2497.0,5.1487]
[1642926346959,2.23403385,2497.8,2497.2,1.26559791]
[1642926347159,2.23403385,2497.7,2497.2,1.26559791]
[1642926347361,2.23403385,2497.7,2497.2,1.56559791]
[1642926347663,2.23403385,2497.7,2497.3,1.25284178]
[1642926347859,2.23403385,2497.7,2497.3,3.95174718]
[1642926348360,2.23403385,2497.6,2497.3,3.91404122]
[1642926348559,2.23403385,2497.6,2497.3,1.25284178]
[1642926349159,2.23403385,2497.6,2497.2,1.56559791]
[1642926349811,2.23403385,2497.5,2497.2,1.56559791]
[1642926350010,1.9194665,2497.5,2497.2,1.56559791]
[1642926350412,1.9194665,2497.5,2497.2,3.04178717]
[1642926350911,1.52837186,2497.8,2497.2,3.04178717]
[1642926351112,1.52837186,2497.8,2497.2,1.56559791]
[1642926351713,0.13819997,2498.2,2497.3,2.65460481]
[1642926351916,2.61465915,2498.4,2497.4,0.02652011]
[1642926352216,5.08103664,2498.8,2497.8,0.04538744]
[1642926352217,2.61465915,2498.8,2497.8,0.04538744]
[1642926352617,2.61465915,2498.8,2497.7,0.01217431]
[1642926352818,2.61465915,2498.8,2498.1,2.9270943]
[1642926353261,2.61465915,2498.8,2498.1,1.43673298]
[1642926353455,0.09,2499.0,2498.1,1.43673298]
[1642926353860,0.17685181,2499.0,2498.1,1.43673298]
[1642926354064,1.17685181,2499.0,2498.1,1.43673298]
[1642926354264,1.18055018,2498.5,2498.1,1.43673298]
[1642926354463,1.17685181,2499.0,2498.1,1.43673298]
[1642926354863,3.79151096,2499.0,2498.1,1.43673298]
[1642926355468,1.49149997,2498.5,2498.1,2.79829739]
[1642926355666,3.79151096,2499.0,2498.1,2.79829739]
[1642926356066,3.79151096,2499.0,2498.1,1.38673298]
[1642926356267,3.79151096,2499.0,2497.9,4.9442]
[1642926356467,4.39151096,2499.0,2497.9,4.9442]
[1642926356668,0.481,2498.9,2497.9,4.9442]
[1642926357013,0.09947532,2498.8,2497.4,0.84780806]
[1642926357215,1.20165967,2497.6,2497.4,0.84780806]
[1642926357616,0.481,2498.1,2497.4,0.68780806]
[1642926357816,1.481,2498.1,2497.4,0.68780806]
[1642926358021,23.43,2498.0,2496.9,2.80920658]
[1642926358618,1.94778473,2497.9,2496.9,2.80920658]
[1642926358821,0.01781142,2497.8,2496.9,2.80920658]
[1642926359018,1.33995722,2497.8,2497.3,1.32781734]
[1642926359220,1.3221458,2497.8,2497.3,1.32781734]
[1642926359418,2.3221458,2497.8,2497.3,1.32781734]
[1642926359617,1.3221458,2497.8,2497.1,1.42230444]
[1642926360223,1.3221458,2497.8,2496.8,5.1799]
[1642926360866,1.3221458,2497.8,2497.1,1.33500279]
[1642926361467,2.0044747,2498.6,2497.2,2.80920658]
[1642926361670,3.9111,2498.7,2497.3,0.20071]
[1642926361873,3.9111,2498.7,2497.3,1.29851759]
[1642926362069,3.9111,2498.7,2497.5,0.05727313]
[1642926362470,1.94829696,2498.6,2497.5,1.05727313]
[1642926362670,1.24856129,2498.5,2498.0,2.94537823]
[1642926362871,1.94829696,2498.6,2498.0,2.94537823]
[1642926363572,1.2467,2498.8,2498.0,2.94537823]
[1642926363573,1.94829696,2498.7,2498.0,2.94537823]
[1642926363972,1.17042622,2498.6,2498.0,2.94537823]
[1642926364609,1.17042622,2498.6,2498.0,3.54537823]
[1642926365308,0.09,2499.0,2498.4,1.5000898]
[1642926365713,0.09,2499.0,2498.5,0.0177327]
[1642926365918,0.09,2499.0,2498.4,1.5000898]
[1642926366113,1.00171,2499.3,2498.5,7.91920658]
[1642926366322,2.41601989,2499.5,2498.5,8.28505583]
[1642926366519,2.41601989,2499.5,2499.2,0.3]
[1642926366815,2.41601989,2499.5,2498.5,8.58505583]
[1642926366816,2.41601989,2499.5,2498.7,0.20071]
[1642926367013,2.41601989,2499.5,2499.3,1.13338604]
[1642926367414,1.94715815,2499.4,2499.3,1.43338604]
[1642926367616,1.94715815,2499.4,2499.3,0.3]
[1642926368020,1.94715815,2499.4,2499.0,0.3]
[1642926368262,1.94715815,2499.4,2499.3,1.10490353]
[1642926368658,0.04,2499.5,2499.3,1.40490353]
[1642926368860,0.04,2499.5,2499.3,2.38280353]
[1642926369061,0.04,2499.5,2499.3,1.2779]
[1642926369862,0.04,2499.5,2499.4,1.20858702]
[1642926370063,0.01,2499.9,2499.4,1.20858702]
[1642926370864,0.01,2499.9,2499.8,2.70102041]
[1642926371073,0.01,2499.9,2499.8,1.70546341]
[1642926371264,0.01,2499.9,2499.8,0.57054227]
[1642926371265,1.95375761,2499.9,2499.8,0.57054227]
[1642926372323,1.95375761,2499.9,2499.6,0.16]
[1642926372525,0.01,2499.9,2499.6,0.16]
[1642926372724,0.01,2499.9,2499.3,0.3]
[1642926372923,0.01,2499.9,2499.2,1.3]
[1642926373224,0.01,2499.9,2498.6,0.84746455]
[1642926373425,0.08685181,2499.8,2498.6,2.16203367]
[1642926373633,0.01209975,2499.7,2498.6,2.16203367]
[1642926373825,0.49309975,2499.7,2498.6,2.16203367]
[1642926374024,3.56164831,2499.6,2498.6,0.68746455]
[1642926374229,25.22307134,2499.5,2498.6,0.68746455]
[1642926374425,2.00362,2499.3,2497.7,1.90473777]
[1642926374628,0.01278535,2499.1,2497.8,7.80004303]
[1642926374928,2.1377,2499.4,2497.8,7.80004303]
[1642926375127,1.31207134,2499.5,2498.5,1.5062194]
[1642926375326,1.31207134,2499.5,2498.6,3.14516298]
[1642926375525,1.31207134,2499.5,2498.6,2.67950606]
[1642926375769,1.242,2499.9,2498.5,1.5062194]
[1642926375960,1.242,2499.9,2498.5,4.47904913]
[1642926376166,2.24347,2499.9,2499.1,1.32779507]
[1642926376464,1.01147,2499.9,2498.5,4.30267751]
[1642926376664,1.01147,2499.9,2498.5,0.3]
[1642926376862,1.01147,2499.9,2498.4,0.31230501]
[1642926377065,2.01147,2499.9,2498.4,1.0]
[1642926377263,1.52825058,2498.7,2498.6,1.2343039]
[1642926377664,4.2616,2499.7,2498.6,1.8343039]
[1642926377863,4.2616,2499.7,2498.7,2.73995477]
[1642926377864,1.1543,2499.7,2498.7,2.73995477]
[1642926378265,1.1543,2499.7,2498.6,1.8343039]
[1642926378671,1.30316747,2499.1,2498.7,1.10983301]
[1642926378865,1.1543,2499.7,2499.1,1.31465188]
[1642926379267,1.01,2499.9,2498.8,4.7959]
[1642926379514,0.01,2499.9,2498.8,5.0959]
[1642926379715,1.01147,2499.9,2498.8,5.0959]
[1642926380117,1.01147,2499.9,2498.8,4.7959]
[1642926380118,1.10847076,2499.8,2498.8,4.7959]
[1642926380316,1.11361094,2499.7,2498.8,4.7959]
[1642926380516,1.49471654,2498.9,2498.8,4.7959]
[1642926380716,1.49471654,2498.9,2498.7,1.33473838]
[1642926380917,1.49471654,2498.9,2498.7,1.63473838]
[1642926381323,1.49471654,2498.9,2498.7,0.3]
[1642926381517,1.49471654,2498.9,2498.3,1.3]
[1642926381722,1.49471654,2498.9,2497.8,3.05186966]
[1642926381723,4.9620261,2498.7,2497.4,3.2568]
[1642926381932,0.01239591,2498.1,2496.8,0.00182399]
[1642926382123,2.79256048,2498.6,2496.8,0.00182399]
[1642926382124,0.01244675,2497.6,2496.8,0.00182399]
[1642926382324,1.10443258,2497.1,2496.8,0.00182399]
[1642926382523,1.10443258,2497.1,2496.1,1.4068655]
[1642926382524,4.05,2497.0,2496.1,1.4068655]
[1642926382723,4.05,2497.0,2495.9,0.00182399]
[1642926383122,4.05,2497.0,2495.7,0.47520452]
[1642926383123,1.20456214,2496.9,2495.7,0.47520452]
[1642926383377,1.37957115,2495.9,2495.7,0.47520452]
[1642926383576,1.37957115,2495.9,2495.1,0.00182399]
[1642926383775,1.37957115,2495.9,2494.7,0.46857897]
[1642926383776,0.00841374,2495.8,2494.7,0.46857897]
[1642926383978,1.37957115,2495.9,2494.8,3.40724969]
[1642926384180,1.37957115,2495.9,2494.7,0.46857897]
[1642926384378,1.17387628,2494.8,2494.7,0.46857897]
[1642926384579,1.22957414,2495.6,2495.1,3.52162883]
[1642926384781,0.20006,2495.5,2495.1,3.19115395]
[1642926384984,0.20006,2495.5,2495.1,2.57790124]
[1642926384985,0.16,2495.4,2495.1,2.57790124]
[1642926385182,1.71057414,2495.6,2495.1,1.97190124]
[1642926385379,1.87057414,2495.6,2495.1,0.91392858]
[1642926385580,1.87057414,2495.6,2495.1,0.56092858]
[1642926385781,1.48234354,2495.5,2495.1,0.56092858]
[1642926385980,0.16,2495.4,2495.1,0.56092858]
[1642926386385,0.6413,2496.5,2495.1,0.56092858]
[1642926386589,2.72210318,2496.6,2495.1,0.56092858]
[1642926386590,0.1602,2496.6,2495.1,0.56092858]
[1642926387012,0.1602,2496.6,2495.1,0.71092858]
[1642926387213,0.1602,2496.6,2496.2,1.11667851]
[1642926387414,2.72210318,2497.1,2496.2,1.11667851]
[1642926387415,1.34742877,2496.9,2496.2,1.11667851]
[1642926387612,1.34742877,2496.9,2496.2,1.41667851]
[1642926387816,0.21238609,2497.2,2496.2,1.41667851]
[1642926388118,0.20006,2497.2,2496.3,0.03910619]
[1642926388321,0.20006,2497.2,2496.2,1.41667851]
[1642926388520,0.20006,2497.2,2495.7,0.1602]
[1642926388725,1.37278176,2495.9,2495.4,1.16530857]
[1642926388923,1.37278176,2495.9,2494.8,2.3602]
[1642926388924,1.37278176,2495.9,2495.1,0.41092858]
[1642926389521,0.1597,2496.2,2495.5,1.41867928]
[1642926389721,0.1597,2496.2,2495.1,0.41092858]
[1642926389922,4.34091746,2496.4,2495.1,0.71092858]
[1642926390124,4.34091746,2496.4,2495.1,1.01092858]
[1642926390125,0.1595,2496.4,2495.1,1.01092858]
[1642926390324,0.15093252,2496.5,2495.2,0.20006]
[1642926390522,0.15093252,2496.5,2496.2,1.32759811]
[1642926390523,0.13819997,2496.5,2496.2,1.32759811]
[1642926391168,0.13819997,2496.5,2496.3,1.24207573]
[1642926392170,0.13819997,2496.5,2495.2,1.16202399]
[1642926392171,0.20006,2496.4,2495.2,1.16202399]
[1642926392376,0.20006,2496.4,2495.2,0.1602]
[1642926392377,0.481,2496.3,2495.2,0.1602]
[1642926392574,0.00335922,2496.1,2495.2,0.1602]
[1642926392771,0.36026,2496.0,2495.2,0.1602]
[1642926393272,1.1976858,2495.4,2495.2,0.1602]
[1642926393571,0.1603,2495.8,2495.2,0.1602]
[1642926393774,0.1603,2495.8,2494.0,0.00182399]
[1642926393775,3.25,2495.2,2494.0,0.00182399]
[1642926393971,3.25,2495.2,2493.9,0.13819997]
[1642926393972,0.1603,2495.1,2493.9,0.13819997]
[1642926394172,1.0,2495.1,2493.9,0.13819997]
[1642926394377,0.1603,2495.2,2494.2,0.20006]
[1642926394623,0.481,2496.1,2494.9,3.8861974]
[1642926394821,2.20578,2496.7,2495.0,0.02728503]
[1642926394822,0.1602,2496.2,2495.0,0.02728503]
[1642926395020,0.1602,2496.4,2495.0,0.01256364]
[1642926395218,0.20006,2496.3,2495.0,0.01256364]
[1642926395421,0.20006,2496.3,2495.3,1.54314799]
[1642926395422,0.1602,2496.2,2495.3,1.54314799]
[1642926395621,0.20006,2496.3,2495.3,1.54314799]
[1642926395622,0.1602,2496.3,2495.3,1.54314799]
[1642926395821,0.20006,2496.2,2495.3,1.54314799]
[1642926396023,0.1602,2496.1,2495.3,1.54314799]
[1642926396220,0.36026,2496.2,2495.3,1.54314799]
[1642926396521,23.43,2496.1,2495.0,0.46851505]
[1642926396724,1.12462538,2495.2,2495.0,0.46851505]
[1642926397121,1.28492538,2495.2,2495.0,0.46851505]
[1642926397320,1.28492538,2495.2,2495.0,1.505e-05]
[1642926397321,24.11106,2495.1,2495.0,1.505e-05]
[1642926397524,0.8540275,2495.1,2493.9,1.64160406]
[1642926397721,0.1603,2495.0,2494.7,1.31445922]
[1642926398024,1.0033943,2495.4,2494.7,1.31445922]
[1642926398025,0.481,2494.9,2494.7,1.31445922]
[1642926398258,0.481,2495.4,2494.2,7.77148188]
[1642926398458,0.1603,2495.3,2494.2,7.77148188]
[1642926398659,0.1603,2495.3,2494.3,1.48695874]
[1642926398660,0.20006,2495.2,2494.3,1.48695874]
[1642926398860,0.1603,2495.1,2494.3,1.77842736]
[1642926399057,23.43,2495.3,2494.3,1.77842736]
[1642926399058,4.25908545,2495.2,2494.3,1.77842736]
[1642926399260,3.25908545,2495.2,2494.8,1.4576002]
[1642926399461,3.16334919,2495.2,2494.3,1.77842736]
[1642926399664,0.1603,2495.1,2494.3,1.77842736]
[1642926399865,0.20006,2495.0,2494.3,0.29146862]
[1642926400074,0.1603,2494.9,2494.3,0.29146862]
[1642926400465,1.6175,2495.7,2494.4,0.1603]
[1642926400666,0.17278871,2495.9,2494.5,0.49150211]
[1642926400866,0.6413,2496.3,2494.7,0.04356339]
[1642926401066,0.6413,2496.3,2494.6,0.1603]
[1642926401067,0.481,2496.3,2495.1,1.5]
[1642926401267,0.6412,2496.3,2496.0,1.46756543]
[1642926401468,0.33825997,2496.5,2496.0,1.46756543]
[1642926401469,0.1602,2496.4,2496.0,1.46756543]
[1642926401666,0.33825997,2496.5,2496.0,1.46756543]
[1642926402121,0.33825997,2496.5,2496.0,1.45756543]
[1642926402319,0.01268831,2496.7,2496.0,1.45756543]
[1642926402522,0.01268831,2496.7,2496.1,0.03087243]
[1642926402724,0.01288042,2497.4,2496.6,1.16259718]
[1642926403122,2.00478,2497.8,2496.6,1.76259718]
[1642926403123,0.16,2497.7,2496.6,1.76259718]
[1642926403324,0.01265712,2497.6,2496.6,1.16259718]
[1642926403624,0.01265712,2497.6,2496.6,1.46259718]
[1642926403822,0.01265712,2497.6,2497.2,1.5494215]